Cogmind - Beta 17.1 @@@ ROGUE MODE // 2026.09.14 @ 22:16:44 Player: Jiber Result: Destroyed by B-75 Beast with Heavy Plasma Cannon Performance ------------- Evolutions (4) 2000 Regions Visited (10) 2000 Robots Destroyed (37) 185 Value Destroyed (1198) 1198 Prototype IDs (5) 100 Alien Tech Used (0) 0 Bonus (616) 616 TOTAL SCORE: 6099 Bonus ------- Follower Combat Kills 316 Aligned with FarCom 300 Cogmind --------- Core Integrity 0/850 Matter 300/300 Energy 58/100 System Corruption 2% Temperature Cool (12) Movement Walking (110) Location -6/Extension Parts ------- > --- POWER (1) -------- (None) > --- PROPULSION (4) --- Multireflex Exoskeleton Multireflex Exoskeleton > --- UTILITY (7) ------ Enhanced Optical Array Enhanced Optical Array Improved Salvage Targeting Computer Improved Target Analyzer Focal Shield > --- WEAPON (3) ------- (None) > --- INVENTORY (5) ---- Improved Reaction Control System Improved Hacking Suite System Restoration Module Heavy Machine Gun Bore Cannon Peak State ------------ > --- POWER ------------ Improved Deuterium Engine > --- PROPULSION ------- Flying Fortress v7 > --- UTILITY ---------- Improved Cooling System Small Storage Unit Enhanced Optical Array Improved Melee Analysis Suite Layered Light Armor Plating Improved Shield Generator Drone Bay > --- WEAPON ----------- Proton Cannon Power Maul Power Maul > --- INVENTORY -------- Light Nuclear Core Light Nuclear Core Gravmag System Cesium-ion Thruster Improved Cesium-ion Thruster Trap Scanner Enhanced Optical Array System Restoration Module [Rating: 79] Favorites ----------- Power Ion Engine Engine Ion Engine Power Core Light Nuclear Core Propulsion Aluminum Leg Leg Aluminum Leg Wheel Compact Wheel Hover Unit Gravmag System Flight Unit Flying Fortress v7 Utility Small Storage Unit Device Trap Scanner Storage Small Storage Unit Processor Enhanced Optical Array Protection Layered Light Armor Plating Weapon Heavy Laser Energy Gun Heavy Laser Energy Cannon Plasma Cannon Ballistic Gun Autogun Ballistic Cannon Advanced Assault Cannon Launcher Rocket Launcher Impact Weapon Power Maul Slashing Weapon Mining Claw Build | -11 -10 -10 -10 -9 -8 -7 -7 -7 -6 -6 ------- Run | Yrd Mat Min Exi Min Mat Fac Low Low Fac Ext Slots Evolved 8 | . . . . . 4 2 . . 2 . Power . | . . . . . . . . . . . Propulsion 2 | . . . . . 2 . . . . . Utility 5 | . . . . . 2 2 . . 1 . Weapon 1 | . . . . . . . . . 1 . Parts Attached 64 | 4 2 4 . 6 5 7 4 . 24 8 Power 9 | 1 . 1 . . 1 . 1 . 2 3 Engine 6 | 1 . 1 . . . . 1 . 1 2 Core 3 | . . . . . 1 . . . 1 1 Reactor . | . . . . . . . . . . . Propulsion 12 | 1 1 . . 2 1 . . . 7 . Treads . | . . . . . . . . . . . Leg 6 | 1 1 . . . . . . . 4 . Wheel 2 | . . . . 2 . . . . . . Hover 1 | . . . . . . . . . 1 . Flight 3 | . . . . . 1 . . . 2 . Utility 24 | 1 . 1 . 2 2 6 2 . 8 2 Device 11 | . . 1 . 1 1 3 1 . 2 2 Storage 3 | 1 . . . . . 1 . . 1 . Processor 7 | . . . . 1 . . 1 . 5 . Hackware . | . . . . . . . . . . . Protection 3 | . . . . . 1 2 . . . . Artifact . | . . . . . . . . . . . Weapon 19 | 1 1 2 . 2 1 1 1 . 7 3 Energy Gun 6 | 1 . 2 . 1 . . . . 1 1 Energy Cannon 2 | . . . . 1 . . . . 1 . Ballistic Gun 1 | . . . . . . . . . . 1 Ballistic Cannon 4 | . . . . . . . . . 3 1 Launcher 3 | . 1 . . . 1 1 . . . . Special Weapon . | . . . . . . . . . . . Impact Weapon 2 | . . . . . . . . . 2 . Slashing Weapon 1 | . . . . . . . 1 . . . Piercing Weapon . | . . . . . . . . . . . Special Melee Weapon . | . . . . . . . . . . . Unidentified Prototypes 3 | . . . . . 1 . . . 2 . Parts Lost 22 | . . 2 . . . . 3 . 10 7 Power 3 | . . . . . . . . . 1 2 Propulsion 3 | . . . . . . . . . 3 . Utility 8 | . . . . . . . 2 . 4 2 Weapon 8 | . . 2 . . . . 1 . 2 3 Highest Loss Streak 6 | . . 1 . . . . 3 . 6 6 To Critical Strikes 1 | . . . . . . . . . 1 . Average Backups 5 | 3 4 5 6 4 6 7 7 7 5 5 Power 1 | 1 1 1 2 1 . . 1 2 . . Propulsion 1 | 1 1 2 3 1 1 1 2 3 1 . Utility 1 | . . . 1 1 1 2 2 1 2 3 Weapon . | 1 2 . . . 1 1 . 1 . 1 Tool/Special . | . . . . . . . . . . . Unused Backups 16 | . . . 3 1 1 6 . . . 5 Power 2 | . . . 2 . . . . . . . Propulsion 2 | . . . 1 . . 1 . . . . Utility 7 | . . . . 1 1 2 . . . 3 Weapon 4 | . . . . . . 2 . . . 2 Tool/Special 1 | . . . . . . 1 . . . . Average Slot Usage (%) 86 | . 76 92 100 99 66 73 75 76 75 85 Engine 8 | . 14 14 14 14 7 . . 7 3 5 Core 1 | . . . . . 1 7 6 . 1 . Leg 10 | . 28 28 28 5 . . . . 2 13 Wheel 4 | . . . . 22 . . . . . . Flight 2 | . . . . . 8 7 7 7 3 . Device 14 | . . 6 14 11 4 20 22 23 16 12 Storage 8 | . 14 14 14 14 9 7 7 7 4 . Processor 8 | . . . . 2 9 1 1 7 18 33 Protection 3 | . . . . . 8 13 13 7 2 . Energy Gun 11 | . 14 24 28 15 9 7 5 . . 3 Energy Cannon 3 | . . . . 12 . . 1 7 4 . Ballistic Cannon 2 | . . . . . . . . . 3 13 Launcher 1 | . 5 3 . . 8 7 . . . . Slashing Weapon 1 | . . . . . . . 6 7 1 . Peak Build Rating 79 | 4 6 7 10 20 53 64 64 63 79 77 Average Rating 38 | 3 5 6 7 18 49 60 61 63 56 74 On Entrance 33 | . 4 6 7 10 18 53 64 63 63 75 Avg Prop Armor Cover (%) 9 | . . . . 10 . . . . 4 . Naked Turns . | . . . . . . . . . . . Heaviest Build 46 | 12 15 15 14 22 24 35 37 37 46 31 Greatest Support 72 | 10 20 20 20 26 50 59 59 50 72 72 Greatest Overweight (x) 7 | 1 . . . 1 . . . . 7 . Average Overweight (x) . | . . . . . . . . . . . Largest Inventory Capacity 8 | 8 8 8 8 8 8 8 8 8 8 5 Average Capacity 7 | 7 8 8 8 8 8 8 8 8 7 5 Most Carried 8 | 5 5 7 8 8 8 8 8 8 8 5 Average Carried 6 | 3 4 5 7 7 6 7 7 7 5 4 Final Capacity 8 | 8 8 8 8 8 8 8 8 8 5 5 Final Carried 8 | 5 4 7 8 8 7 8 7 8 5 5 Class Distribution -------------------- 73% | Mutant 5% | Gunner 4% | Scavenger-Skirmisher 4% | Gladiator 3% | Assassin 3% | Scout Dominant Class ---------------- Mutant | -10/Materials Mutant | -10/Mines Mutant | -10/Exiles Mutant | -9/Mines Scout | -8/Materials Mutant | -7/Factory Mutant | -7/Lower Caves Mutant | -7/Lower Caves Gladiator | -6/Factory Scavenger-Skirmisher | -6/Extension Resources | -11 -10 -10 -10 -9 -8 -7 -7 -7 -6 -6 ----------- Run | Yrd Mat Min Exi Min Mat Fac Low Low Fac Ext Matter Collected 1573 | 238 39 310 . 119 . 34 181 10 198 444 Remotely . | . . . . . . . . . . . Salvage Created 1076 | . 67 139 . 56 . 116 293 . 275 130 Parts 68 | . 9 10 . 7 . 8 15 . 6 13 Haulers Intercepted . | . . . . . . . . . . . Recyclers Shooed 1 | . . . . . . . . . 1 . Parts Field Recycled . | . . . . . . . . . . . Retrieved Matter . | . . . . . . . . . . . Parts Self-Destructed 18 | . . . . . . . 18 . . . Prevented . | . . . . . . . . . . . Parts Restored . | . . . . . . . . . . . Kills | -11 -10 -10 -10 -9 -8 -7 -7 -7 -6 -6 ------- Run | Yrd Mat Min Exi Min Mat Fac Low Low Fac Ext Combat Hostiles Destroyed 33 | . 2 9 . 3 . 4 7 . 6 2 Melee 8 | . . . . . . . 7 . 1 . Guns 14 | . . 8 . 3 . 2 . . . 1 Cannons 3 | . . . . . . . . . 2 1 AOE 5 | . 2 1 . . . 2 . . . . Classes Destroyed 12 | . 3 3 . . . 1 2 . 2 1 Worker 1 | . . 1 . . . . . . . . Builder 3 | . 2 . . . . . . . . 1 Recycler 1 | . 1 . . . . . . . . . Operator 1 | . . . . . . . . . . 1 Watcher 2 | . . . . . . . . . 1 1 Swarmer 13 | . 2 4 . 3 . . 4 . . . Grunt 6 | . . 1 . . . 3 1 . . 1 Duelist 1 | . . . . . . . 1 . . . Sentry 5 | . . . . . . . 1 . 3 1 Hunter 2 | . . . . . . . . . 2 . Programmer 2 | . . . . . . 1 . . 1 . Assembled 4 | . . 4 . . . . . . . . Best Kill Streak 5 | . 5 3 . 3 . 3 2 . 2 1 Combat Bots Only 3 | . 2 3 . 3 . 3 2 . 2 1 Max Kills in Single Turn 2 | . 2 2 . 1 . 2 1 . 1 1 Gunslinging . | . . . . . . . . . . . Exploded 1 | . 1 1 . . . 1 . . . . Melee 1 | . . . . . . . 1 . 1 . Uniques/NPCs Destroyed . | . . . . . . . . . . . Combat | -11 -10 -10 -10 -9 -8 -7 -7 -7 -6 -6 -------- Run | Yrd Mat Min Exi Min Mat Fac Low Low Fac Ext Hostile Shots Fired 553 | . 12 29 . 19 . 16 119 . 204 154 Missed 194 | . 4 8 . 5 . 8 35 . 77 57 Hits 359 | . 8 21 . 14 . 8 84 . 127 97 Melee 15 | . . 3 . . . . 12 . . . Projectile 344 | . 8 18 . 14 . 8 72 . 127 97 AOE 2 | . . . . . . . . . 2 . Critical Strikes 7 | . . . . . . . 1 . 3 3 Part Disruptions 2 | . . 1 . . . . . . 1 . Damage Taken 5168 | . 121 265 . 135 . 143 1299 . 1589 1616 Core 1255 | . 29 31 . 6 . 31 285 . 429 444 Absorbed by Shields 164 | . . . . . . . 87 . 77 . Ignored by Resistances 228 | . . . . . . . . . 20 208 Core Remaining (%) 81 | 100 . . . 73 100 . . 54 . . Volleys Fired 89 | 1 9 23 . 6 . 6 13 . 18 13 Largest 3 | 1 1 2 . 2 . 2 1 . 2 3 Hottest 168 | 40 30 80 . 149 . 102 80 . 80 168 Shots Fired 150 | 1 9 43 . 13 . 11 13 . 20 40 Gun 79 | 1 . 35 . 12 . 6 12 . . 13 Cannon 49 | . . . . 1 . . 1 . 20 27 Launcher 22 | . 9 8 . . . 5 . . . . Special . | . . . . . . . . . . . Kinetic 46 | . . . . . . . . . 17 29 Thermal 52 | . . 14 . 8 . 6 13 . . 11 Explosive 22 | . 9 8 . . . 5 . . . . Electromagnetic 30 | 1 . 21 . 5 . . . . 3 . Robot Hit Streak 6 | . . 4 . 2 . 2 3 . 6 4 Robot Miss Streak 10 | . 2 4 . 4 . 1 8 . 5 10 Penetration Max . | . . . . . . . . . . . Secondary Targets 1 | . . . . 1 . . . . . . Max Gunslinging Chain 1 | . . . . 1 . . . . . . Shots Hit Robots 104 | . . 22 . 4 . 6 23 . 29 20 Core Hits 78 | . 10 14 . 4 . 9 12 . 13 16 Critical Kills . | . . . . . . . . . . . Critical Parts Destroyed 2 | . . . . . . . . . 1 1 Critical Strikes 6 | . . . . . . 1 . . 3 2 Burn 1 | . . . . . . 1 . . . . Destroy 1 | . . . . . . . . . . 1 Blast 2 | . . . . . . . . . 1 1 Smash 2 | . . . . . . . . . 2 . Melee Attacks 42 | . . . . . . . 32 . 10 . Impact 10 | . . . . . . . . . 10 . Slashing 32 | . . . . . . . 32 . . . Piercing . | . . . . . . . . . . . Sneak Attacks . | . . . . . . . . . . . Combat Hostiles . | . . . . . . . . . . . Follow-up Attacks 1 | . . . . . . . . . 1 . Damage Inflicted 3320 | . 324 443 . 55 . 405 549 . 907 637 Guns 628 | . . 247 . 45 . 87 77 . . 172 Cannons 944 | . . . . . . . 27 . 493 424 Explosions 833 | . 324 191 . . . 318 . . . . Melee 855 | . . . . . . . 445 . 410 . Ramming 60 | . . 5 . 10 . . . . 4 41 Kinetic 833 | . . . . . . . . . 393 440 Thermal 485 | . . 105 . 33 . 87 104 . . 156 Explosive 833 | . 324 191 . . . 318 . . . . Electromagnetic 254 | . . 142 . 12 . . . . 100 . Impact 410 | . . . . . . . . . 410 . Slashing 445 | . . . . . . . 445 . . . Piercing . | . . . . . . . . . . . Highest Corruption 6 | . . 5 5 5 . . . . 6 6 Average Corruption 4 | . . 5 5 5 . . . . 5 4 Corruption Purged 4 | . . . . . . . . . . 4 Corruption Blocked . | . . . . . . . . . . . Effects 89 | . . 13 19 26 . . . . 8 23 Message Errors 25 | . . 3 8 5 . . . . 2 7 Matter Fused 20 | . . 4 4 3 . . . . 3 6 Heat Flow Errors 10 | . . 3 1 3 . . . . . 3 Energy Discharges 14 | . . 2 4 5 . . . . 2 1 Parts Fused 1 | . . . . 1 . . . . . . Data Loss (minor) 10 | . . 1 2 3 . . . . 1 3 Data Loss (major) 4 | . . . . 4 . . . . . . Misfires 3 | . . . . 1 . . . . . 2 Alerts 1 | . . . . 1 . . . . . . Weapon Failures 1 | . . . . . . . . . . 1 Overload Shots . | . . . . . . . . . . . Overflow Damage 68 | . . 2 . . . 10 . . 56 . Projectiles 5 | . . . . . . . . . 5 . Explosions 12 | . . 2 . . . 10 . . . . Melee 51 | . . . . . . . . . 51 . Knockbacks 12 | . . . . . . . . . 8 4 Impact 3 | . . . . . . . . . 2 1 Kinetic 9 | . . . . . . . . . 6 3 Secondary . | . . . . . . . . . . . Self-Inflicted Damage 127 | . 67 35 . 4 . 21 . . . . Shots 6 | . 3 2 . . . 1 . . . . Rammed 3 | . . . . 3 . . . . . . Targets Rammed 10 | . . 1 . 3 . . . . 1 5 Kicked 7 | . . 1 . . . . . . 1 5 Crushed . | . . . . . . . . . . . Highest Temperature 396 | . . 263 161 258 . 394 356 . 39 396 Average Temperature 145 | . . 62 85 79 . 204 154 . 18 130 Received Heat Transfer 799 | . . 32 . . . 45 177 . 134 411 Effects 14 | . . . . . . 8 5 . . 1 Shutdowns 1 | . . . . . . 1 . . . . Energy Bleed 2 | . . . . . . 1 1 . . . Interference 8 | . . . . . . 6 2 . . . Short Circuit 1 | . . . . . . . . . . 1 Damage (minor) 2 | . . . . . . . 2 . . . Siege Activations . | . . . . . . . . . . . Martial Activations . | . . . . . . . . . . . Shielding Activations . | . . . . . . . . . . . Robots Disrupted . | . . . . . . . . . . . Combat Hostiles . | . . . . . . . . . . . Robots Corrupted 3 | . . . . . . . . . 3 . Combat Hostiles 3 | . . . . . . . . . 3 . Parts Fried 5 | . . . . . . . . . 5 . Impact Corruptions 3 | . . . . . . . . . 3 . Robots Melted . | . . . . . . . . . . . Combat Hostiles . | . . . . . . . . . . . Parts Melted . | . . . . . . . . . . . Heat Transferred 1095 | . . 250 . 75 . 222 198 . . 350 Parts Sabotaged . | . . . . . . . . . . . Parts Stolen 1 | . . . . . . . 1 . . . Parts Stripped . | . . . . . . . . . . . Power Chain Reactions . | . . . . . . . . . . . Alert | -11 -10 -10 -10 -9 -8 -7 -7 -7 -6 -6 ------- Run | Yrd Mat Min Exi Min Mat Fac Low Low Fac Ext Maximum Alert Level 1 | . . . . . . 1 . . . . Low Security (%) 99 | 100 100 100 . 100 100 99 . . 100 100 Level 1 . | . . . . . . . . . . . Level 2 . | . . . . . . . . . . . Level 3 . | . . . . . . . . . . . Level 4 . | . . . . . . . . . . . Level 5 . | . . . . . . . . . . . High Security . | . . . . . . . . . . . Max Security . | . . . . . . . . . . . Peak Influence 203 | . 80 120 . 95 18 203 . . 52 198 Initial 27 | . . 27 . . 18 . . . . 19 Average 22 | . 27 22 . 15 3 52 . . 8 33 Influence Increases 1576 | . 90 149 . 171 . 257 265 . 196 448 Destroy 0b10 Robot/C 840 | . 40 100 . 140 . 80 140 . 120 220 Destroy 0b10 Robot/NC 40 | . 15 5 . . . . . . 5 15 Destroy Leader 144 | . 10 10 . 20 . 10 20 . 52 22 Allied During Kill 126 | . . . . 10 . . . . . 116 Successful Hack 25 | . . . . . . 14 . . 4 7 Disable Machine 90 | . . . . . . 90 . . . . Destroy Structure 131 | . 25 34 . 1 . 63 . . . 8 Lose Combat Pursuer 180 | . . . . . . . 105 . 15 60 Influence Decreases 1576 | . 20 207 12 124 47 100 371 51 156 488 Entered New Map 175 | . . 43 12 . 29 . 59 11 . 21 Time Decay 1110 | . 20 154 . 124 18 100 282 40 121 251 Lost Part 91 | . . 10 . . . . 30 . 35 16 Lost Ally 200 | . . . . . . . . . . 200 Squads Dispatched 10 | . . . . . . 3 . . 3 4 Investigation 3 | . . . . . . 1 . . . 2 Extermination 2 | . . . . . . 1 . . 1 . Reinforcement 4 | . . . . . . 1 . . 1 2 Assault . | . . . . . . . . . . . Garrison 1 | . . . . . . . . . 1 . Intercept . | . . . . . . . . . . . Searches Triggered . | . . . . . . . . . . . Construction Impeded 1 | . . . . . . . . . . 1 Haulers Reinforced . | . . . . . . . . . . . Active Scanning Responses . | . . . . . . . . . . . Cargo Convoy Interrupts . | . . . . . . . . . . . Stealth | -11 -10 -10 -10 -9 -8 -7 -7 -7 -6 -6 --------- Run | Yrd Mat Min Exi Min Mat Fac Low Low Fac Ext Distress Signals 4 | . . . . . . . . . 1 3 Communications Jammed . | . . . . . . . . . . . Distress Signals . | . . . . . . . . . . . Times Spotted 74 | . 4 9 . 7 . 4 17 . 9 24 Peak Tracking Total 8 | . 2 3 . 4 . 3 4 . 3 8 Tactical Retreats 7 | . . . . . . . 3 . 1 3 Traps | -11 -10 -10 -10 -9 -8 -7 -7 -7 -6 -6 ------- Run | Yrd Mat Min Exi Min Mat Fac Low Low Fac Ext Traps Triggered 2 | . . . . 1 . . . . . 1 Indirectly . | . . . . . . . . . . . Trap Hack Attempts . | . . . . . . . . . . . Triggered . | . . . . . . . . . . . Disarmed . | . . . . . . . . . . . Reprogrammed . | . . . . . . . . . . . Reused . | . . . . . . . . . . . Traps Extracted . | . . . . . . . . . . . Installed . | . . . . . . . . . . . Triggered . | . . . . . . . . . . . Machines | -11 -10 -10 -10 -9 -8 -7 -7 -7 -6 -6 ---------- Run | Yrd Mat Min Exi Min Mat Fac Low Low Fac Ext Machines Disabled 6 | . . . . . . 6 . . . . Max in Single Turn 3 | . . . . . . 3 . . . . Machines Repaired . | . . . . . . . . . . . Machines Dismantled . | . . . . . . . . . . . Machines Sabotaged . | . . . . . . . . . . . Overloaded Fab Kills . | . . . . . . . . . . . Hacking | -11 -10 -10 -10 -9 -8 -7 -7 -7 -6 -6 --------- Run | Yrd Mat Min Exi Min Mat Fac Low Low Fac Ext Machines Accessed 11 | . . . 3 1 . 2 . . 1 4 Terminals 6 | . . . . . . 1 . . 1 4 Fabricators 1 | . . . . . . 1 . . . . Repair Stations . | . . . . . . . . . . . Recycling Units . | . . . . . . . . . . . Scanalyzers . | . . . . . . . . . . . Garrison Access . | . . . . . . . . . . . Total Hacks 42 | . . . 26 1 . 7 . . 1 7 Successful 34 | . . . 26 1 . 4 . . 1 2 Failed 8 | . . . . . . 3 . . . 5 Catastrophic . | . . . . . . . . . . . Database Lockouts . | . . . . . . . . . . . Manual 1 | . . . 1 . . . . . . . Terminals 12 | . . . . . . 4 . . 1 7 Fabricators 3 | . . . . . . 3 . . . . Repair Stations . | . . . . . . . . . . . Recycling Units . | . . . . . . . . . . . Scanalyzers . | . . . . . . . . . . . Garrison Access . | . . . . . . . . . . . Terminal Hacks 33 | . . . 26 1 . 3 . . 1 2 Record 26 | . . . 26 . . . . . . . Prototype ID Bank 1 | . . . . . . 1 . . . . Open Door 4 | . . . . 1 . . . . 1 2 Emergency Access Points 1 | . . . . . . 1 . . . . Alert Level 1 | . . . . . . 1 . . . . Fabricator Hacks 1 | . . . . . . 1 . . . . Build 1 | . . . . . . 1 . . . . Repair Station Hacks . | . . . . . . . . . . . Recycling Unit Hacks . | . . . . . . . . . . . Scanalyzer . | . . . . . . . . . . . Garrison Access Hacks . | . . . . . . . . . . . Unauthorized Hacks . | . . . . . . . . . . . Terminals . | . . . . . . . . . . . Fabricators . | . . . . . . . . . . . Repair Stations . | . . . . . . . . . . . Recycling Units . | . . . . . . . . . . . Scanalyzers . | . . . . . . . . . . . Garrison Access . | . . . . . . . . . . . Data Cores Recovered . | . . . . . . . . . . . Used . | . . . . . . . . . . . Hacking Detections 7 | . . . . . . 2 . . 1 4 Full Trace Events 3 | . . . . . . 1 . . . 2 Feedback Events . | . . . . . . . . . . . Feedback Blocked . | . . . . . . . . . . . Robot Schematics Acquired . | . . . . . . . . . . . Robots Built . | . . . . . . . . . . . Authchips . | . . . . . . . . . . . Time . | . . . . . . . . . . . Total Robot Build Rating . | . . . . . . . . . . . Part Schematics Acquired . | . . . . . . . . . . . Parts Built 1 | . . . . . . 1 . . . . Authchips . | . . . . . . . . . . . Time 47 | . . . . . . 47 . . . . Total Part Build Rating 5 | . . . . . . 5 . . . . Part Studies Acquired . | . . . . . . . . . . . Parts Repaired . | . . . . . . . . . . . Time . | . . . . . . . . . . . Parts Recycled . | . . . . . . . . . . . Recycled Matter . | . . . . . . . . . . . Retrieved Matter . | . . . . . . . . . . . Retrieved Components . | . . . . . . . . . . . Parts Scanalyzed . | . . . . . . . . . . . Part Schematics Acquired . | . . . . . . . . . . . Parts Damaged . | . . . . . . . . . . . Bothacking | -11 -10 -10 -10 -9 -8 -7 -7 -7 -6 -6 ------------ Run | Yrd Mat Min Exi Min Mat Fac Low Low Fac Ext Used RIF Installer . | . . . . . . . . . . . Robots Hacked . | . . . . . . . . . . . Non-combat . | . . . . . . . . . . . Combat . | . . . . . . . . . . . Robot Hacks Applied . | . . . . . . . . . . . Relay Couplers Released . | . . . . . . . . . . . Fabnet Peak Effective % . | . . . . . . . . . . . Robots Rewired 7 | . . . . . . . . . . 7 Allies Hacked . | . . . . . . . . . . . Hacks Repelled . | . . . . . . . . . . . Allies | -11 -10 -10 -10 -9 -8 -7 -7 -7 -6 -6 -------- Run | Yrd Mat Min Exi Min Mat Fac Low Low Fac Ext Total Allies 14 | . . . . 4 . . . . . 10 Largest Group 8 | . . . . 3 2 1 . . . 8 Highest-Rated Group 213 | . . . . 40 32 16 . . . 213 Highest-Rated Ally 31 | . . . . 31 16 16 . . . 31 Total Orders 2 | . . . . . . . . . 2 . ROAM 2 | . . . . . . . . . 2 . Ally Attacks 74 | . . . . 9 . 6 . . . 59 Total Damage 1362 | . . . . 86 . 62 . . . 1214 Kills 13 | . . . . 4 . . . . . 9 Allies Corrupted . | . . . . . . . . . . . Allies Melted 2 | . . . . . . 1 . . . 1 Intel | -11 -10 -10 -10 -9 -8 -7 -7 -7 -6 -6 ------- Run | Yrd Mat Min Exi Min Mat Fac Low Low Fac Ext Active Infowar (turns) 4181 | . . 342 692 810 145 400 311 . 661 820 Optics 1878 | . . . . 161 145 91 . . 661 820 Traps 1147 | . . . . . 67 400 311 . 369 . Seismic 1147 | . . 342 692 113 . . . . . . Jamming 536 | . . . . 536 . . . . . . Robot Analysis Total . | . . . . . . . . . . . Derelict Logs Recovered 5 | . . 2 . 1 . . 1 1 . . Drone Launches 2 | . . . . . . . . . 2 . Drone Recoveries 2 | . . . . . . . . . 2 . Exploration | -11 -10 -10 -10 -9 -8 -7 -7 -7 -6 -6 ------------- Run | Yrd Mat Min Exi Min Mat Fac Low Low Fac Ext Turns Passed 5584 | 70 110 694 692 1073 145 430 675 202 673 820 Spaces Moved 5702 | 38 75 513 575 863 258 743 1088 402 579 568 Core 19 | 11 . . . . . . . . 8 . Treads . | . . . . . . . . . . . Legs 1962 | 27 75 513 575 72 . . . . 132 568 Wheels 791 | . . . . 791 . . . . . . Hover 10 | . . . . . . . . . 10 . Flight 2920 | . . . . . 258 743 1088 402 429 . Fastest Speed 50 | 50 120 120 120 90 50 50 50 50 50 110 Average Speed 82 | 149 120 120 120 97 50 50 50 50 95 110 Slowest Speed 595 | 190 120 120 120 190 50 50 50 50 595 110 Overloaded Moves . | . . . . . . . . . . . Propulsion Burnouts . | . . . . . . . . . . . Robots Hopped 2 | . . . . . 1 . 1 . . . Potential Cave-ins . | . . . . . . . . . . . Cave-ins Triggered . | . . . . . . . . . . . Exploration Rate (%) 48 | 3 20 81 90 95 19 20 88 51 13 49 Regions Visited 10 Branch Regions 6 Pre-discovered Areas 3 | . . 3 . . . . . . . . Known Exits Taken 1 | . . . . . 1 . . . . . Unknown Exits Taken 9 | 1 1 1 1 1 . 1 1 1 1 . Scrap Searched 6 | . . 1 . 2 . . 2 1 . . Spaces Dug . | . . . . . . . . . . . Terrain Destroyed 147 | . 29 43 . 1 . 67 . . . 7 Melee . | . . . . . . . . . . . Projectile 8 | . . . . 1 . . . . . 7 AOE 139 | . 29 43 . . . 67 . . . . Terrain Rammed . | . . . . . . . . . . . Walls Destroyed . | . . . . . . . . . . . Machines Disabled . | . . . . . . . . . . . Actions | -11 -10 -10 -10 -9 -8 -7 -7 -7 -6 -6 --------- Run | Yrd Mat Min Exi Min Mat Fac Low Low Fac Ext Total 6347 | 51 86 548 578 1086 273 794 1139 402 659 731 Wait 239 | . . . . 199 . 17 . . 1 22 Move 5688 | 37 74 512 574 862 255 742 1085 401 578 568 Hop 2 | . . . . . 1 . 1 . . . Pick Up 62 | 9 1 7 1 5 8 10 3 1 14 3 Fast Attach 16 | . . . . 2 . 3 . . 7 4 Attach 30 | 4 2 3 . 1 3 . 4 . 13 . Detach . | . . . . . . . . . . . Swap 21 | . . 1 . 3 2 4 1 . 6 4 Drop 43 | . . 1 3 5 4 12 . . 12 6 Fire 89 | 1 9 23 . 6 . 6 13 . 18 13 Melee 41 | . . . . . . . 32 . 9 . Ram 3 | . . . . 3 . . . . . . Kick 7 | . . 1 . . . . . . 1 5 Crush . | . . . . . . . . . . . Escape Stasis . | . . . . . . . . . . . Rewire 106 | . . . . . . . . . . 106 Trap . | . . . . . . . . . . . Miscellaneous . | . . . . . . . . . . . Route ------- -11/Scrapyard -10/Materials -10/Mines (discovered 3 exits: [*Mat x2] / *Exi) -10/Exiles (discovered 2 exits: *Min x2) -9/Mines (discovered 2 exits: [*Mat x2]) -8/Materials (discovered 2 exits: *Fac x2) -7/Factory -7/Lower Caves -7/Lower Caves -6/Factory (discovered 2 exits: Low / *Ext) -6/Extension History --------- Turn | Location | Event 8 | -11/Scrapyard | Discovered new exit (range 16) 71 | -11/Scrapyard | Entered Materials 83 | -10/Materials | Discovered new exit (range 16) 181 | -10/Materials | Entered Mines 182 | -10/Mines | Assembled infested the area 305 | -10/Mines | Build established: Mutant 391 | -10/Mines | Learned location of Mines (-9) 477 | -10/Mines | Discovered new exit (range 10) 674 | -10/Mines | Learned location of Storage (-7) 761 | -10/Mines | Discovered new exit (range 8) 869 | -10/Mines | Deemed a non-threat by the Exiles lab entrance 870 | -10/Mines | Discovered new exit (range 5) 875 | -10/Mines | Entered Exiles 893 | -10/Exiles | Discovered new exit (range 15) 931 | -10/Exiles | Met 8R-AWN 950 | -10/Exiles | Met EX-HEX 995 | -10/Exiles | Met EX-DEC 1038 | -10/Exiles | Visited The Gauntlet 1240 | -10/Exiles | Met EX-BIN 1359 | -10/Exiles | Aligned with FarCom system 1360 | -10/Exiles | Given EX-Vault access code 1388 | -10/Exiles | Opened EX-Vault 1395 | -10/Exiles | Found Prototype Flight Unit 1440 | -10/Exiles | Warned to stay clear of 0b10 Research branches 1552 | -10/Exiles | Discovered new exit (range 14) 1567 | -10/Exiles | Left Exiles lab with Flying Fortress v7 1567 | -10/Exiles | Entered Mines 1658 | -9/Mines | Met a Derelict who couldn't figure out how to use a Trap Extractor 1876 | -9/Mines | Discovered new exit (range 7) 1879 | -9/Mines | Received a Mining Laser from a helpful Derelict 1913 | -9/Mines | Joined a pair of Derelicts in attacking an 0b10 outpost 2247 | -9/Mines | Assisted by bots powering up and referring to "LRC-V3" 2360 | -9/Mines | Discovered new exit (range 5) 2474 | -9/Mines | Received a Rocket Launcher from a helpful Derelict 2640 | -9/Mines | Entered Materials 2640 | -8/Materials | Accompanied by 2 allies 2640 | -8/Materials | Evolved 4 slots: Propulsion x2, Utility x2 2641 | -8/Materials | Identified exit to Factory 2642 | -8/Materials | Identified Flying Fortress v7 2784 | -8/Materials | Discovered exit to Factory (range 3) 2785 | -8/Materials | Entered Factory 2785 | -7/Factory | Accompanied by 1 ally 2785 | -7/Factory | Evolved 2 slots: Utility x2 2951 | -7/Factory | Fabricated Drone Bay? 3207 | -7/Factory | Discovered new exit (range 5) 3215 | -7/Factory | Entered Lower Caves 3286 | -7/Lower Caves | Learned Factory security intel 3466 | -7/Lower Caves | Attracted the attention of an 0b10 checkpoint 3807 | -7/Lower Caves | Lost 3 parts (2u1w) 3883 | -7/Lower Caves | Discovered new exit (range 10) 3890 | -7/Lower Caves | Entered another Lower Caves area 4047 | -7/Lower Caves | Discovered new exit (range 13) 4092 | -7/Lower Caves | Entered Factory 4092 | -6/Factory | Evolved 2 slots: Utility x1, Weapon x1 4093 | -6/Factory | Identified exit to Lower Caves 4359 | -6/Factory | Lost 3 parts (1n2u) 4527 | -6/Factory | Lost 6 parts (1p2n2u1w) 4666 | -6/Factory | Garrison activated, responded to threat 4692 | -6/Factory | Core integrity fell below 50% 4761 | -6/Factory | Discovered new exit (range 6) 4765 | -6/Factory | Entered Extension 4840 | -6/Extension | Spotted B-75 Beast 4996 | -6/Extension | Build established: Gunner 5239 | -6/Extension | Rescued a captive Derelict 5240 | -6/Extension | Rescued a captive Derelict 5312 | -6/Extension | Spotted B-75 Beast 5315 | -6/Extension | Rescued a captive Derelict 5364 | -6/Extension | Lost 9 allies 5573 | -6/Extension | Core integrity fell below 20% 5585 | -6/Extension | Destroyed by B-75 Beast with Heavy Plasma Cannon Last Messages --------------- 05500_ System corrupted: Component data lost. 05550_ W-25 Informer sends out distress signal. 05561_ J3DGU #X0&PP:7FWSJPKZUWDS 05563_ Adv. Assault Cannon destroyed. 05565_ W-25 Informer sends out distress signal. 05570_ Gatling Laser destroyed. 05571_ Lgt. Angular Momentum Engine destroyed. 05572_ Critical hit (Burn: +37). 05572_ Penetrated by Slug. 05573_ System Restoration Module destroyed. 05574_ Autogun destroyed. 05575_ Knocked back. 05576_ Slug penetrates B-75 Beast. 05576_ Drone sends a signal. 05577_ ,SEW>APY RT8>B45& E3TPWZV8LC 05580_ Door Terminal disabled. 05581_ Penetrated by Slug. 05581_ U-05 Engineer destroyed. 05583_ Adv. Heat Sink destroyed. Map ----- +----------------------------------------------------+ | ??????????????????#%#????????????????????????????? | | ??????????????????#=#????????????????????????????? | | ????????????????###=#????????????????????????????? | | ??????????????###T#*#????????????????????????????? | | ??????????????# %%#????????????????????????????? | | ??????????????####"=#????????????????????????????? | | ?????????????????#;!##???????????????????????????? | | ?????????????????#;=;##??????????????????????????? | | ??????????????????;%; #????????#?????????????????? | | ??????????????????;!; ###?##?? #?????????????????? | | ????????????????###=;## ## ### ###???????????????? | | ????????????????#""R% ""w""#???????????????? | | ????????????????# % u " " #???????????????? | | ????????????????# *%= u #???????????????? | | ????????????????# % %Y R #???????????????? | | #####"########### R ##########??????? | | % h ??????? | | u ???????? | | % ????????? | | ! ??????????? | | g =%= A u ??????????? | | ################# BB | BB #???????????????? | | ????????????????# BB BB #???????????????? | | ???????????????## #???????????????? | | ???????????????#; % % #???????????????? | | ????????????????# % @ #???????????????? | | ????????????????#####; #"""#######???????????????? | | ????????????????????#"##?????????????????????????? | | ????????????????????#????????????????????????????? | | | | | | | | | | | | | | | | | | | | | | | | | | | | | | | | | | | | | | | | | | | +----------------------------------------------------+ Best States ------------- Heat Dissipation 64 Energy Generation 18 Energy Capacity 290 Matter Stores 300 Matter Capacity 300 Sight Range 22 Terrain Scan Density 10 Jamming Range 12 Additional Mass Support 9 Armor Coverage 375 Resistance: KI 20 Evasion (%) 60 Melee Accuracy 6 Target Analysis 8 Energy Filtering 30 Salvage Targeting 2 Item Schematics ----------------- None Robot Schematics ------------------ None Fabricated ------------ Drone Bay | x1 | -7/Factory | Preloaded Repaired ---------- Nothing Studied --------- None Alien Tech Used ----------------- None Achievements -------------- None Challenges ------------ None Game ------ Seed ActuatorSurgeSaw Manual? 0 Play Time 00:59:05 Cumulative 70.8 hours Start 2026.09.13 @ 00:42:17 End 2026.09.14 @ 22:16:44 Sessions 3 Manual Loads 0 Difficulty Rogue Special Mode None Game No. 84 Rogue 84 Adventurer 0 Explorer 0 Win Type - Total 1 Types 0/0/1/0/0/0/0/0/0/0 Lore% 35 Gallery% 42 Achievement% 33 Wizard Run 0 Options --------- Layout 1 ASCII 0 Keyboard 0 Movement Mouse Keybinds 0 Fullscreen 2 Font 32/SmallcapsGlow Map View 50x35 Zoom Use 0% Tactical HUD 1 Map Filters NONE Filters NONE Steam 1 RUN: 0cb4844e-c49a-4939-af4f-73a8161e0baa